fUSD/lending_fUSD_20250109
["ID","MTS","AMOUNT","RATE_DAILY","PERIOD"]
[348294042,1736435455888,-500.0,0.00010526,2]
[348294043,1736435455899,-500.0,0.00010526,2]
[348294044,1736435455910,-500.0,0.00010526,2]
[348294045,1736435455922,-500.0,0.00010526,2]
[348294046,1736435455933,-500.0,0.00010526,2]
[348294047,1736435455944,-500.0,0.00010526,2]
[348294048,1736435455956,-500.0,0.00010526,2]
[348294049,1736435455968,-500.0,0.00010526,2]
[348294050,1736435455980,-500.0,0.00010526,2]
[348294051,1736435455991,-500.0,0.00010526,2]
[348294052,1736435456012,-500.0,0.00010526,2]
[348294053,1736435456023,-500.0,0.00010526,2]
[348294054,1736435456035,-500.0,0.00010526,2]
[348294055,1736435456047,-500.0,0.00010526,2]
[348294056,1736435456060,-500.0,0.00010526,2]
[348294057,1736435456071,-500.0,0.00010526,2]
[348294058,1736435456083,-500.0,0.00010526,2]
[348294059,1736435456094,-500.0,0.00010526,2]
[348294060,1736435456105,-500.0,0.00010526,2]
[348294061,1736435456117,-500.0,0.00010526,2]
[348294062,1736435456129,-500.0,0.00010526,2]
[348294063,1736435456140,-500.0,0.00010526,2]
[348294064,1736435456151,-500.0,0.00010526,2]
[348294065,1736435456163,-500.0,0.00010526,2]
[348294066,1736435456175,-500.0,0.00010526,2]
[348294067,1736435456185,-500.0,0.00010526,2]
[348294068,1736435456197,-500.0,0.00010526,2]
[348294069,1736435456208,-500.0,0.00010526,2]
[348294070,1736435456219,-500.0,0.00010526,2]
[348294071,1736435456230,-500.0,0.00010526,2]
[348294072,1736435456241,-500.0,0.00010526,2]
[348294073,1736435456258,-500.0,0.00010526,2]
[348294074,1736435456269,-500.0,0.00010526,2]
[348294075,1736435456280,-500.0,0.00010526,2]
[348294076,1736435456291,-500.0,0.00010526,2]
[348294077,1736435456303,-500.0,0.00010526,2]
[348294078,1736435456314,-500.0,0.00010526,2]
[348294079,1736435456325,-625.52,0.00010526,2]
[348294080,1736435456336,-1474.26,0.00010526,2]
[348294081,1736435456347,-1474.26,0.00010526,2]
[348294082,1736435456358,-1068.96,0.00010526,2]
[348294083,1736435456370,-2257.63,0.00010526,2]
[348294084,1736435456382,-1486.04,0.00010526,2]
[348294085,1736435456393,-2411.94,0.00010527,2]
[348294086,1736435456404,-549.66,0.00010527,2]
[348294087,1736435456414,-958.29,0.00010527,2]
[348294088,1736435456424,-500.0,0.00010527,2]
[348294089,1736435456435,-2516.81,0.00010542,2]
[348294090,1736435456445,-844.98,0.00010542,2]
[348294091,1736435456456,-526.76,0.00010542,2]
[348294092,1736435456466,-500.0,0.00010544,2]
[348294093,1736435456476,-500.0,0.00010544,2]
[348294094,1736435456486,-500.0,0.00010544,2]
[348294095,1736435456496,-500.0,0.00010544,2]
[348294096,1736435456510,-1811.96,0.00010544,2]
[348294097,1736435456519,-1325.78,0.00010544,2]
[348294098,1736435456529,-1904.14,0.00010544,2]
[348294100,1736435456539,-986.79,0.00010544,2]
[348294101,1736435456549,-1138.85,0.00010544,2]
[348294102,1736435456559,-3077.27,0.00010544,2]
[348294103,1736435456569,-9056.59,0.00010544,2]
[348294104,1736435456579,-1508.02,0.00010544,2]
[348294105,1736435456588,-500.0,0.00010544,2]
[348294106,1736435456598,-500.0,0.00010544,2]
[348294107,1736435456608,-2101.42,0.00010544,2]
[348294108,1736435456618,-500.0,0.00010544,2]
[348294109,1736435456628,-500.0,0.00010544,2]
[348294110,1736435456639,-834.82,0.00010544,2]
[348294111,1736435456649,-500.0,0.00010544,2]
[348294112,1736435456658,-1235.04,0.00010544,2]
[348294113,1736435456668,-1000.0,0.00010544,2]
[348294114,1736435456679,-692.05,0.00010544,2]
[348294115,1736435456689,-500.0,0.00010544,2]
[348294116,1736435456699,-1722.76,0.00010544,2]
[348294117,1736435456709,-1270.55,0.00010544,2]
[348294118,1736435456720,-150.0,0.00010572,2]
[348294119,1736435456729,-153.0,0.00010617,2]
[348294120,1736435456738,-153.0,0.00010618,2]
[348294121,1736435456752,-153.0,0.00010623,2]
[348294122,1736435456762,-153.0,0.00010624,2]
[348294123,1736435456771,-153.0,0.00010641,2]
[348294124,1736435456782,-232.08,0.00010642,2]
[348294125,1736435456792,-153.0,0.00010649,2]
[348294126,1736435456801,-1883.22,0.00010658,2]
[348294127,1736435456812,-150.0,0.00010658,2]
[348294128,1736435456822,-874.02,0.00010658,2]
[348294129,1736435456832,-150.0,0.00010658,2]
[348294130,1736435456842,-150.0,0.00010658,2]
[348294131,1736435456851,-151.85,0.00010753,2]
[348294132,1736435456861,-873.95,0.00010793,2]
[348294133,1736435456871,-853.78,0.00010793,2]
[348294134,1736435456881,-500.0,0.00010793,2]
[348294135,1736435456891,-1622.53,0.00010793,2]
[348294136,1736435456901,-500.0,0.00010793,2]
[348294137,1736435456911,-736.68,0.00010793,2]
[348294138,1736435456921,-709.66,0.00010793,2]
[348294139,1736435456931,-1385.38,0.00010793,2]
[348294140,1736435456941,-2843.25,0.00010793,2]
[348294141,1736435456952,-1378.92,0.00010793,2]
[348294142,1736435456962,-686.902198,0.00010793,2]
[348294143,1736435456973,-890.85,0.00010793,2]
[348294144,1736435456984,-918.646778,0.00010793,2]
[348294145,1736435456994,-3339.53,0.00010793,2]
[348294146,1736435457012,-847.48,0.00010793,2]
[348294147,1736435457023,-554.43,0.00010793,2]
[348294148,1736435457034,-500.0,0.00010793,2]
[348294149,1736435457044,-3496.51,0.00010793,2]
[348294150,1736435457055,-500.0,0.00010793,2]
[348294151,1736435457064,-830.77,0.00010793,2]
[348294152,1736435457075,-500.0,0.00010793,2]
[348294153,1736435457084,-500.0,0.00010793,2]
[348294154,1736435457094,-1059.41,0.00010793,2]
[348294155,1736435457104,-1383.26,0.00010793,2]
[348294156,1736435457114,-913.75,0.00010793,2]
[348294157,1736435457124,-2581.58,0.00010793,2]
[348294158,1736435457134,-500.0,0.00010794,2]
[348294159,1736435457144,-500.0,0.00010794,2]
[348294160,1736435457153,-500.0,0.00010794,2]
[348294161,1736435457164,-500.0,0.00010794,2]
[348294162,1736435457175,-500.0,0.00010794,2]
[348294163,1736435457185,-500.0,0.00010794,2]
[348294164,1736435457195,-500.0,0.00010794,2]
[348294166,1736435457204,-500.0,0.00010794,2]
[348294167,1736435457214,-500.0,0.00010794,2]
[348294168,1736435457224,-500.0,0.00010794,2]
[348294169,1736435457235,-500.0,0.00010794,2]
[348294170,1736435457245,-500.0,0.00010794,2]
[348294171,1736435457260,-500.0,0.00010794,2]
[348294172,1736435457269,-500.0,0.00010794,2]
[348294173,1736435457279,-500.0,0.00010794,2]
[348294174,1736435457289,-301.41,0.00010794,2]
[348294175,1736435457299,-500.0,0.00010794,2]
[348294176,1736435457310,-500.0,0.00010794,2]
[348294177,1736435457320,-500.0,0.00010794,2]
[348294178,1736435457331,-500.0,0.00010794,2]
[348294179,1736435457342,-500.0,0.00010794,2]
[348294180,1736435457352,-500.0,0.00010794,2]
[348294181,1736435457361,-500.0,0.00010794,2]
[348294182,1736435457372,-500.0,0.00010794,2]
[348294183,1736435457382,-500.0,0.00010794,2]
[348294184,1736435457392,-500.0,0.00010794,2]
[348294185,1736435457402,-500.0,0.00010794,2]
[348294186,1736435457412,-500.0,0.00010794,2]
[348294187,1736435457422,-500.0,0.00010794,2]
[348294188,1736435457433,-500.0,0.00010794,2]
[348294189,1736435457443,-431.4,0.00010794,2]
[348294190,1736435457453,-613.21,0.00010794,2]
[348294191,1736435457463,-500.0,0.00010794,2]
[348294192,1736435457474,-500.0,0.00010794,2]
[348294193,1736435457484,-500.0,0.00010794,2]
[348294194,1736435457495,-500.0,0.00010794,2]
[348294195,1736435457509,-500.0,0.00010794,2]
[348294196,1736435457518,-500.0,0.00010794,2]
[348294197,1736435457529,-500.0,0.00010794,2]
[348294198,1736435457539,-500.0,0.00010794,2]
[348294199,1736435457550,-500.0,0.00010794,2]
[348294201,1736435457560,-500.0,0.00010794,2]
[348294202,1736435457570,-500.0,0.00010794,2]
[348294203,1736435457580,-569.56,0.00010794,2]
[348294204,1736435457590,-500.0,0.00010794,2]
[348294205,1736435457600,-500.0,0.00010794,2]
[348294206,1736435457615,-500.0,0.00010794,2]
[348294207,1736435457625,-500.0,0.00010794,2]
[348294208,1736435457637,-500.0,0.00010794,2]
[348294209,1736435457649,-189.17311381,0.00010794,2]
[348294210,1736435457661,-500.0,0.00010794,2]
[348294211,1736435457671,-500.0,0.00010794,2]
[348294212,1736435457683,-500.0,0.00010794,2]
[348294213,1736435457693,-592.81,0.00010794,2]
[348294214,1736435457705,-2773.35,0.00010794,2]
[348294215,1736435457716,-500.0,0.00010794,2]
[348294216,1736435457726,-500.0,0.00010794,2]
[348294217,1736435457736,-500.0,0.00010794,2]
[348294218,1736435457746,-291.32,0.00010794,2]
[348294219,1736435457759,-500.0,0.00010794,2]
[348294220,1736435457769,-500.0,0.00010794,2]
[348294221,1736435457779,-1523.64,0.00010794,2]
[348294222,1736435457790,-1540.84,0.00010794,2]
[348294223,1736435457800,-500.0,0.00010794,2]
[348294224,1736435457811,-500.0,0.00010794,2]
[348294225,1736435457822,-500.0,0.00010794,2]
[348294226,1736435457832,-500.0,0.00010794,2]
[348294227,1736435457843,-500.0,0.00010794,2]
[348294228,1736435457856,-4594.33,0.00010794,2]
[348294229,1736435457867,-500.0,0.00010794,2]
[348294230,1736435457877,-601.61,0.00010794,2]
[348294231,1736435457887,-500.0,0.00010794,2]
[348294232,1736435457898,-500.0,0.00010794,2]
[348294233,1736435457909,-500.0,0.00010794,2]
[348294234,1736435457918,-500.0,0.00010794,2]
[348294235,1736435457929,-679.55,0.00010794,2]
[348294236,1736435457939,-500.0,0.00010794,2]
[348294237,1736435457949,-630.88,0.00010794,2]
[348294238,1736435457960,-500.0,0.00010794,2]
[348294239,1736435457971,-623.89,0.00010794,2]
[348294240,1736435457981,-500.0,0.00010794,2]
[348294241,1736435457991,-500.0,0.00010794,2]
[348294242,1736435458004,-500.0,0.00010794,2]
[348294243,1736435458014,-500.0,0.00010794,2]
[348294244,1736435458024,-500.0,0.00010794,2]
[348294245,1736435458033,-500.0,0.00010794,2]
[348294246,1736435458044,-500.0,0.00010794,2]
[348294247,1736435458054,-741.61,0.00010794,2]
[348294248,1736435458064,-710.71,0.00010794,2]
[348294249,1736435458074,-1713.36,0.00010794,2]
[348294250,1736435458084,-500.0,0.00010798,2]
[348294251,1736435458094,-2767.89,0.00010798,2]
[348294252,1736435458105,-4034.94,0.00010798,2]
[348294253,1736435458116,-819.48,0.00010798,2]
[348294254,1736435458127,-1727.46,0.00010798,2]
[348294255,1736435458137,-3578.28,0.00010798,2]
[348294256,1736435458147,-500.0,0.00010798,2]
[348294258,1736435458157,-500.0,0.00010798,2]
[348294259,1736435458167,-1001.78,0.00010798,2]
[348294260,1736435458178,-500.0,0.00010798,2]
[348294261,1736435458189,-500.0,0.00010798,2]
[348294262,1736435458201,-500.0,0.00010798,2]
[348294263,1736435458212,-740.95,0.00010798,2]
[348294264,1736435458223,-1720.06,0.00010798,2]
[348294265,1736435458235,-500.0,0.00010798,2]
[348294266,1736435458245,-650.21,0.00010798,2]
[348294267,1736435458257,-500.0,0.00010799,2]
[348294268,1736435458266,-500.0,0.00010799,2]
[348294269,1736435458276,-500.0,0.00010799,2]
[348294270,1736435458286,-643.05,0.00010799,2]
[348294271,1736435458295,-621.03,0.00010799,2]
[348294272,1736435458306,-500.0,0.00010799,2]
[348294273,1736435458315,-500.0,0.00010799,2]
[348294274,1736435458325,-500.0,0.00010799,2]
[348294275,1736435458335,-230.91,0.00010799,2]
[348294276,1736435458346,-500.0,0.00010799,2]
[348294277,1736435458355,-500.0,0.00010799,2]
[348294278,1736435458365,-500.0,0.00010799,2]
[348294279,1736435458375,-500.0,0.00010799,2]
[348294280,1736435458385,-500.0,0.00010799,2]
[348294281,1736435458395,-500.0,0.00010799,2]
[348294282,1736435458405,-715.91,0.00010799,2]
[348294283,1736435458416,-500.0,0.00010799,2]
[348294285,1736435458426,-500.0,0.00010799,2]
[348294286,1736435458436,-500.0,0.00010799,2]
[348294287,1736435458445,-500.0,0.00010799,2]
[348294288,1736435458455,-500.0,0.00010799,2]
[348294289,1736435458465,-500.0,0.00010799,2]
[348294290,1736435458475,-500.0,0.00010799,2]
[348294291,1736435458485,-500.0,0.00010799,2]
[348294292,1736435458494,-500.0,0.00010799,2]
[348294293,1736435458509,-500.3,0.00010799,2]
[348294294,1736435458519,-500.0,0.00010799,2]
[348294295,1736435458529,-500.0,0.00010799,2]
[348294296,1736435458540,-500.0,0.00010799,2]
[348294297,1736435458550,-500.0,0.00010799,2]
[348294298,1736435458559,-500.0,0.00010799,2]
[348294299,1736435458569,-500.0,0.00010799,2]
[348294300,1736435458580,-466.4174585,0.00010799,2]
[348294301,1736435458590,-500.0,0.00010799,2]
[348294302,1736435458600,-500.0,0.00010799,2]
[348294303,1736435458613,-500.0,0.00010799,2]
[348294304,1736435458623,-500.0,0.00010799,2]
[348294305,1736435458633,-500.0,0.00010799,2]
[348294306,1736435458643,-500.0,0.00010799,2]
[348294307,1736435458653,-210.20807407,0.00010799,2]
[348294308,1736435458665,-500.0,0.00010799,2]
[348294309,1736435458674,-500.0,0.00010799,2]
[348294310,1736435458685,-500.0,0.00010799,2]
[348294311,1736435458696,-500.0,0.00010799,2]
[348294312,1736435458705,-557.72,0.00010799,2]
[348294313,1736435458714,-500.0,0.00010799,2]
[348294314,1736435458723,-500.0,0.00010799,2]
[348294315,1736435458731,-500.0,0.00010799,2]
[348294316,1736435458740,-500.0,0.00010799,2]
[348294317,1736435458752,-500.0,0.00010799,2]
[348294318,1736435458762,-663.48,0.00010799,2]
[348294319,1736435458772,-500.0,0.00010799,2]
[348294320,1736435458782,-500.0,0.00010799,2]
[348294321,1736435458791,-500.0,0.00010799,2]
[348294322,1736435458801,-346.99969894,0.00010799,2]
[348294323,1736435458811,-500.0,0.00010799,2]
[348294324,1736435458821,-633.48,0.00010799,2]
[348294325,1736435458831,-500.0,0.00010799,2]
[348294326,1736435458840,-500.0,0.00010799,2]
[348294327,1736435458850,-500.0,0.00010799,2]
[348294328,1736435458859,-500.0,0.00010799,2]
[348294329,1736435458869,-500.0,0.00010799,2]
[348294330,1736435458879,-500.0,0.00010799,2]
[348294331,1736435458889,-500.0,0.00010799,2]
[348294332,1736435458899,-500.0,0.00010799,2]
[348294333,1736435458909,-500.0,0.00010799,2]
[348294334,1736435458919,-500.0,0.00010799,2]
[348294335,1736435458929,-500.0,0.00010799,2]
[348294336,1736435458941,-500.0,0.00010799,2]
[348294337,1736435458951,-500.0,0.00010799,2]
[348294338,1736435458962,-500.0,0.00010799,2]
[348294339,1736435458972,-500.0,0.00010799,2]
[348294340,1736435458983,-500.0,0.00010799,2]
[348294341,1736435458992,-500.0,0.00010799,2]
[348294342,1736435459004,-500.0,0.00010799,2]
[348294343,1736435459014,-604.01,0.00010799,2]
[348294344,1736435459024,-552.68,0.00010799,2]
[348294345,1736435459035,-500.0,0.00010799,2]
[348294346,1736435459046,-500.0,0.00010799,2]
[348294347,1736435459055,-500.0,0.00010799,2]
[348294348,1736435459065,-500.0,0.00010799,2]
[348294349,1736435459074,-500.0,0.00010799,2]
[348294350,1736435459084,-815.28,0.00010799,2]
[348294351,1736435459095,-500.0,0.00010799,2]
[348294352,1736435459105,-500.0,0.00010799,2]
[348294353,1736435459115,-500.0,0.00010799,2]
[348294354,1736435459125,-563.19,0.00010799,2]
[348294355,1736435459137,-500.0,0.00010799,2]
[348294356,1736435459148,-500.0,0.00010799,2]
[348294357,1736435459158,-500.0,0.00010799,2]
[348294358,1736435459168,-500.0,0.00010799,2]
[348294359,1736435459178,-500.0,0.00010799,2]
[348294360,1736435459189,-500.0,0.00010799,2]
[348294361,1736435459200,-808.64,0.00010799,2]
[348294362,1736435459211,-643.2,0.00010799,2]
[348294363,1736435459221,-500.0,0.00010799,2]
[348294364,1736435459231,-500.0,0.00010799,2]
[348294365,1736435459242,-519.96,0.00010799,2]
[348294366,1736435459255,-500.0,0.00010799,2]
[348294367,1736435459266,-500.0,0.00010799,2]
[348294368,1736435459509,-500.0,0.00010799,2]
[348294369,1736435459531,-500.0,0.00010799,2]
[348294370,1736435459541,-841.09,0.00010799,2]
[348294371,1736435459551,-500.0,0.00010799,2]
[348294372,1736435459561,-500.0,0.00010799,2]
[348294373,1736435459571,-640.94,0.00010799,2]
[348294374,1736435459581,-500.0,0.00010799,2]
[348294375,1736435459591,-500.0,0.00010799,2]
[348294376,1736435459601,-500.0,0.00010799,2]
[348294377,1736435459615,-500.0,0.00010799,2]
[348294378,1736435459624,-500.0,0.00010799,2]
[348294379,1736435459634,-500.0,0.00010799,2]
[348294380,1736435459644,-500.0,0.00010799,2]
[348294381,1736435459655,-500.0,0.00010799,2]
[348294382,1736435459665,-500.0,0.00010799,2]
[348294383,1736435459675,-561.16,0.00010799,2]
[348294384,1736435459684,-500.0,0.00010799,2]
[348294385,1736435459693,-500.0,0.00010799,2]
[348294386,1736435459704,-500.0,0.00010799,2]
[348294387,1736435459713,-500.0,0.00010799,2]
[348294388,1736435459723,-500.0,0.00010799,2]
[348294389,1736435459732,-924.86,0.00010799,2]
[348294390,1736435459743,-500.0,0.00010799,2]
[348294391,1736435459754,-500.0,0.00010799,2]
[348294392,1736435459763,-500.0,0.00010799,2]
[348294393,1736435459773,-500.0,0.00010799,2]
[348294394,1736435459783,-500.0,0.00010799,2]
[348294395,1736435459793,-500.0,0.00010799,2]
[348294396,1736435459802,-500.0,0.00010799,2]
[348294397,1736435459812,-576.52,0.00010799,2]
[348294398,1736435459821,-500.0,0.00010799,2]
[348294399,1736435459831,-500.0,0.00010799,2]
[348294400,1736435459840,-500.0,0.00010799,2]
[348294401,1736435459850,-500.0,0.00010799,2]
[348294402,1736435459859,-500.0,0.00010799,2]
[348294403,1736435459868,-500.0,0.00010799,2]
[348294404,1736435459878,-500.0,0.00010799,2]
[348294405,1736435459888,-500.0,0.00010799,2]
[348294406,1736435459898,-245.40244956,0.00010799,2]
[348294407,1736435459908,-500.0,0.00010799,2]
[348294408,1736435459918,-523.19494236,0.00010799,2]
[348294409,1736435459930,-500.0,0.00010799,2]
[348294410,1736435459940,-500.0,0.00010799,2]
[348294411,1736435459951,-635.08,0.00010799,2]
[348294412,1736435459961,-708.26,0.00010799,2]
[348294413,1736435459971,-500.0,0.00010799,2]
[348294414,1736435459982,-500.0,0.00010799,2]
[348294415,1736435459992,-500.0,0.00010799,2]
[348294416,1736435460003,-500.0,0.00010799,2]
[348294417,1736435460013,-500.0,0.00010799,2]
[348294418,1736435460023,-500.0,0.00010799,2]
[348294419,1736435460034,-500.0,0.00010799,2]
[348294420,1736435460044,-500.0,0.00010799,2]
[348294421,1736435460054,-500.0,0.00010799,2]
[348294422,1736435460065,-500.0,0.00010799,2]
[348294423,1736435460074,-500.0,0.00010799,2]
[348294424,1736435460084,-762.43,0.00010799,2]
[348294425,1736435460094,-500.0,0.00010799,2]
[348294426,1736435460104,-500.0,0.00010799,2]
[348294427,1736435460114,-500.0,0.00010799,2]
[348294428,1736435460125,-500.0,0.00010799,2]
[348294429,1736435460135,-500.0,0.00010799,2]
[348294430,1736435460145,-513.7,0.00010799,2]
[348294431,1736435460154,-500.0,0.00010799,2]
[348294432,1736435460164,-500.0,0.00010799,2]
[348294433,1736435460174,-500.0,0.00010799,2]
[348294434,1736435460184,-500.0,0.00010799,2]
[348294435,1736435460194,-500.0,0.00010799,2]
[348294436,1736435460203,-500.0,0.00010799,2]
[348294437,1736435460212,-500.0,0.00010799,2]
[348294438,1736435460222,-500.0,0.00010799,2]
[348294439,1736435460231,-500.0,0.00010799,2]
[348294440,1736435460240,-500.0,0.00010799,2]
[348294441,1736435460252,-500.0,0.00010799,2]
[348294442,1736435460262,-3645.42,0.00010799,2]
[348294443,1736435460271,-500.0,0.00010799,2]
[348294444,1736435460281,-500.0,0.00010799,2]
[348294445,1736435460290,-694.36,0.00010799,2]
[348294446,1736435460299,-500.0,0.00010799,2]
[348294447,1736435460308,-500.0,0.00010799,2]
[348294448,1736435460319,-500.0,0.00010799,2]
[348294449,1736435460329,-1629.4,0.00010799,2]
[348294450,1736435460339,-500.0,0.00010799,2]
[348294451,1736435460349,-500.0,0.00010799,2]
[348294452,1736435460359,-500.0,0.00010799,2]
[348294453,1736435460368,-500.0,0.00010799,2]
[348294454,1736435460378,-500.0,0.00010799,2]
[348294455,1736435460388,-500.0,0.00010799,2]
[348294456,1736435460398,-500.0,0.00010799,2]
[348294457,1736435460408,-2855.24,0.00010799,2]
[348294458,1736435460418,-500.0,0.00010799,2]
[348294459,1736435460428,-500.0,0.00010799,2]
[348294460,1736435460437,-500.0,0.00010799,2]
[348294461,1736435460447,-500.0,0.00010799,2]
[348294462,1736435460457,-8435.7,0.00010799,2]
[348294463,1736435460467,-500.0,0.00010799,2]
[348294464,1736435460477,-2614.32,0.00010799,2]
[348294465,1736435460487,-500.0,0.00010799,2]
[348294466,1736435460497,-500.0,0.00010799,2]
[348294467,1736435460508,-500.0,0.00010799,2]
[348294468,1736435460518,-500.0,0.00010799,2]
[348294469,1736435460527,-500.0,0.00010799,2]
[348294470,1736435460537,-500.0,0.00010799,2]
[348294471,1736435460546,-908.06,0.00010799,2]
[348294472,1736435460555,-500.0,0.00010799,2]
[348294473,1736435460565,-815.71,0.00010799,2]
[348294474,1736435460574,-500.0,0.00010799,2]
[348294475,1736435460584,-500.0,0.00010799,2]
[348294476,1736435460594,-870.3,0.00010799,2]
[348294477,1736435460603,-1496.93,0.00010799,2]
[348294478,1736435460616,-4478.21,0.00010799,2]
[348294479,1736435460625,-500.0,0.00010799,2]
[348294480,1736435460635,-500.0,0.00010799,2]
[348294481,1736435460647,-500.0,0.00010799,2]
[348294482,1736435460658,-500.0,0.00010799,2]
[348294483,1736435460667,-733.08,0.00010799,2]
[348294484,1736435460677,-500.0,0.00010799,2]
[348294485,1736435460687,-974.9,0.00010799,2]
[348294486,1736435460696,-500.0,0.00010799,2]
[348294487,1736435460706,-2577.74,0.00010799,2]
[348294488,1736435460716,-500.0,0.00010799,2]
[348294489,1736435460726,-2752.02,0.00010799,2]
[348294490,1736435460735,-500.0,0.00010799,2]
[348294491,1736435460745,-500.0,0.00010799,2]
[348294492,1736435460756,-500.0,0.00010799,2]
[348294493,1736435460766,-500.0,0.00010799,2]
[348294494,1736435460776,-654.43,0.00010799,2]
[348294495,1736435460785,-500.0,0.00010799,2]
[348294496,1736435460795,-500.0,0.00010799,2]
[348294497,1736435460806,-584.81,0.00010799,2]
[348294498,1736435460815,-500.0,0.00010799,2]
[348294499,1736435460825,-500.0,0.00010799,2]
[348294500,1736435460835,-1830.73,0.00010799,2]
[348294501,1736435460845,-249.06824298,0.00010799,2]
[348294502,1736435460854,-500.0,0.00010799,2]
[348294503,1736435460863,-5234.76,0.00010799,2]
[348294504,1736435460873,-500.0,0.00010799,2]
[348294505,1736435460883,-500.0,0.00010799,2]
[348294506,1736435460892,-500.0,0.00010799,2]
[348294507,1736435460901,-683.26,0.00010799,2]
[348294508,1736435460911,-500.0,0.00010799,2]
[348294509,1736435460920,-500.0,0.00010799,2]
[348294510,1736435460929,-779.45,0.00010799,2]
[348294511,1736435460939,-500.0,0.00010799,2]
[348294512,1736435460948,-500.0,0.00010799,2]
[348294513,1736435460958,-500.0,0.00010799,2]
[348294514,1736435460968,-573.14,0.00010799,2]
[348294515,1736435460978,-500.0,0.00010799,2]
[348294516,1736435460988,-707.18,0.00010799,2]
[348294517,1736435460997,-582.94,0.00010799,2]
[348294518,1736435461009,-500.0,0.00010799,2]
[348294519,1736435461019,-500.0,0.00010799,2]
[348294520,1736435461028,-500.0,0.00010799,2]
[348294521,1736435461037,-500.0,0.00010799,2]
[348294522,1736435461046,-500.0,0.00010799,2]
[348294523,1736435461056,-2126.92,0.00010799,2]
[348294524,1736435461065,-564.31032367,0.00010799,2]
[348294525,1736435461075,-500.0,0.00010799,2]
[348294526,1736435461085,-500.0,0.00010799,2]
[348294527,1736435461096,-500.0,0.00010799,2]
[348294528,1736435461108,-500.0,0.00010799,2]
[348294529,1736435461120,-500.0,0.00010799,2]
[348294530,1736435461131,-500.0,0.00010799,2]
[348294531,1736435461142,-500.0,0.00010799,2]
[348294532,1736435461153,-500.0,0.00010799,2]
[348294533,1736435461163,-500.0,0.00010799,2]
[348294534,1736435461174,-500.0,0.00010799,2]
[348294535,1736435461184,-500.0,0.00010799,2]
[348294536,1736435461194,-595.03,0.00010799,2]
[348294537,1736435461204,-1299.31,0.00010799,2]
[348294538,1736435461214,-500.0,0.00010799,2]
[348294539,1736435461223,-500.0,0.00010799,2]
[348294540,1736435461233,-500.0,0.00010799,2]
[348294541,1736435461242,-500.0,0.00010799,2]
[348294542,1736435461253,-500.0,0.00010799,2]
[348294543,1736435461266,-500.0,0.00010799,2]
[348294544,1736435461275,-500.0,0.00010799,2]
[348294545,1736435461285,-500.0,0.00010799,2]
[348294546,1736435461295,-500.0,0.00010799,2]